fUST/lending_fUST_20240928
["ID","MTS","AMOUNT","RATE_DAILY","PERIOD"]
[339374529,1727508707923,-500.0,0.00038356,120]
[339374530,1727508707932,-500.0,0.00038356,120]
[339374531,1727508707941,-500.0,0.00038356,2]
[339374532,1727508707950,-535.49742954,0.00038356,120]
[339374533,1727508708096,-180.4660491,0.00038356,120]
[339374534,1727508708106,-2658.87,0.00038356,120]
[339374535,1727508708115,-568.96169709,0.00038356,120]
[339374536,1727508708124,-511.20228658,0.00038356,120]
[339374537,1727508708134,-510.13245466,0.00038356,120]
[339374538,1727508708143,-518.22552592,0.00038356,120]
[339374539,1727508708153,-555.90416106,0.00038356,120]
[339374540,1727508708162,-569.38493898,0.00038356,120]
[339374541,1727508708171,-517.58647232,0.00038356,120]
[339374542,1727508708180,-1301.8,0.00038356,120]
[339374543,1727508708190,-500.0,0.00038356,120]
[339374544,1727508708199,-580.98830198,0.00038356,120]
[339374545,1727508708208,-524.85444651,0.00038356,120]
[339374546,1727508708217,-534.48426305,0.00038356,120]
[339374547,1727508708226,-540.40161677,0.00038356,120]
[339374548,1727508708236,-716.35061541,0.00038356,2]
[339374549,1727508708246,-513.39774415,0.00038356,120]
[339374550,1727508708255,-514.67685986,0.00038356,120]
[339374551,1727508708265,-500.0,0.00038356,120]
[339374552,1727508708274,-509.0317043,0.00038356,120]
[339374553,1727508708283,-558.88369165,0.00038356,120]
[339374554,1727508708292,-500.0,0.00038356,120]
[339374555,1727508708302,-856.09,0.00038356,120]
[339374556,1727508708312,-1037.99,0.00038356,120]
[339374557,1727508708321,-500.0,0.00038356,30]
[339374558,1727508708330,-500.0,0.00038356,18]
[339374559,1727508708340,-547.00681431,0.00038356,120]
[339374560,1727508708351,-500.0,0.00038356,120]
[339374561,1727508708360,-500.0,0.00038356,120]
[339374562,1727508708369,-509.82545101,0.00038356,120]
[339374563,1727508708378,-521.90603821,0.00038356,120]
[339374564,1727508708387,-500.0,0.00038356,21]
[339374565,1727508708396,-538.91532798,0.00038356,120]
[339374566,1727508708406,-500.0,0.00038356,120]
[339374567,1727508708415,-833.36,0.00038356,120]
[339374568,1727508708425,-502.74858643,0.00038356,120]
[339374569,1727508708434,-513.83504272,0.00038356,120]
[339374570,1727508708444,-555.14676008,0.00038356,120]
[339374571,1727508708453,-512.54949061,0.00038356,120]
[339374572,1727508708463,-520.61797809,0.00038356,120]
[339374573,1727508708473,-526.80849096,0.00038356,120]
[339374574,1727508708482,-606.9117126,0.00038356,120]
[339374575,1727508708491,-556.04293916,0.00038356,120]
[339374576,1727508708501,-627.18066795,0.00038356,120]
[339374577,1727508708511,-531.93165123,0.00038356,120]
[339374578,1727508708520,-1000.0,0.00038356,120]
[339374579,1727508708530,-528.71664389,0.00038356,120]
[339374580,1727508708539,-503.97717385,0.00038356,120]
[339374581,1727508708553,-514.63122844,0.00038356,120]
[339374582,1727508708562,-506.86124627,0.00038356,120]
[339374583,1727508708572,-500.0,0.00038356,120]
[339374584,1727508708582,-203.41158314,0.00038356,120]
[339374585,1727508708591,-511.48660302,0.00038356,120]
[339374586,1727508708602,-500.0,0.00038356,120]
[339374587,1727508708612,-426.50847077,0.00038356,30]
[339374588,1727508708622,-1793.53,0.00038356,90]
[339374589,1727508708631,-507.59517648,0.00038356,120]
[339374590,1727508708641,-566.18161955,0.00038356,120]
[339374591,1727508708651,-445.86878508,0.00038356,120]
[339374592,1727508708662,-505.14155215,0.00038356,120]
[339374593,1727508708671,-500.0,0.00038373,5]
[339374594,1727508708681,-150.0,0.00038373,5]
[339374595,1727508708690,-150.0,0.00038373,5]
[339374596,1727508708700,-500.0,0.00038373,5]
[339374597,1727508708709,-266.70133031,0.00038373,5]
[339374598,1727508708718,-500.0,0.00038373,5]
[339374599,1727508708728,-500.0,0.00038373,5]
[339374600,1727508708737,-162.41526968,0.000384,120]
[339374601,1727508708747,-500.0,0.0003863,120]
[339374602,1727508708756,-485.33355454,0.0003863,120]
[339374603,1727508708765,-500.0,0.0003863,30]
[339374604,1727508708775,-500.0,0.0003863,120]
[339374605,1727508708785,-500.0,0.0003863,120]
[339374606,1727508708794,-513.28843774,0.0003863,120]
[339374607,1727508708804,-537.14887984,0.0003863,120]
[339374608,1727508708814,-500.0,0.0003863,120]
[339374609,1727508708823,-500.0,0.0003863,120]
[339374610,1727508708832,-500.0,0.0003863,120]
[339374611,1727508708842,-500.0,0.0003863,120]
[339374612,1727508708851,-380.29715812,0.0003863,120]
[339374613,1727508708861,-745.54,0.0003863,120]
[339374614,1727508708870,-500.0,0.0003863,120]
[339374615,1727508708879,-500.0,0.0003863,120]
[339374616,1727508708889,-453.0547239,0.0003863,120]
[339374617,1727508708898,-164.903657,0.0003863,120]
[339374618,1727508708907,-500.0,0.0003863,2]
[339374619,1727508708917,-500.0,0.0003863,120]
[339374620,1727508708926,-312.94535986,0.0003863,120]
[339374621,1727508708936,-538.45,0.0003863,120]
[339374622,1727508708945,-500.0,0.0003863,120]
[339374623,1727508708954,-503.18620241,0.0003863,7]
[339374624,1727508708964,-500.0,0.0003863,120]
[339374625,1727508708973,-503.99269368,0.0003863,120]
[339374626,1727508708983,-500.0,0.0003863,120]
[339374627,1727508708992,-224.29725377,0.0003863,2]
[339374628,1727508709002,-500.0,0.0003863,120]
[339374629,1727508709011,-500.0,0.0003863,30]
[339374630,1727508709021,-510.78060955,0.0003863,120]
[339374631,1727508709031,-591.26712301,0.0003863,7]
[339374632,1727508709041,-507.08505825,0.0003863,120]
[339374633,1727508709051,-159.40223013,0.0003863,120]
[339374634,1727508709061,-500.0,0.0003863,120]
[339374635,1727508709071,-500.0,0.0003863,120]
[339374636,1727508709081,-517.42416046,0.0003863,120]
[339374637,1727508709091,-1022.64,0.0003863,120]
[339374638,1727508709102,-168.78779884,0.0003863,120]
[339374639,1727508709111,-1092.5,0.0003863,120]
[339374640,1727508709123,-500.0,0.0003863,120]
[339374641,1727508709133,-440.32703439,0.0003863,120]
[339374642,1727508709142,-7083.29,0.0003863,120]
[339374643,1727508709151,-1583.64,0.0003863,120]
[339374644,1727508709161,-4617.35,0.0003863,120]
[339374645,1727508709170,-500.0,0.0003863,120]
[339374646,1727508709179,-505.91824592,0.0003863,120]
[339374647,1727508709190,-180.6950464,0.0003863,120]
[339374648,1727508709200,-507.46048557,0.0003863,120]
[339374649,1727508709209,-502.18804058,0.0003863,2]
[339374650,1727508709219,-2658.87,0.0003863,120]
[339374651,1727508709229,-1301.8,0.0003863,120]
[339374652,1727508709239,-200.22383156,0.0003863,120]
[339374653,1727508709248,-317.29242577,0.0003863,120]
[339374654,1727508709257,-452.66695846,0.0003863,120]
[339374655,1727508709266,-856.09,0.0003863,120]
[339374656,1727508709275,-1037.99,0.0003863,120]
[339374657,1727508709285,-500.0,0.0003863,30]
[339374658,1727508709294,-500.0,0.0003863,18]
[339374659,1727508709304,-500.0,0.0003863,120]
[339374660,1727508709314,-500.0,0.0003863,120]
[339374661,1727508709323,-500.0,0.0003863,21]
[339374662,1727508709332,-500.0,0.0003863,120]
[339374663,1727508709341,-833.36,0.0003863,120]
[339374664,1727508709352,-526.55246063,0.0003863,120]
[339374665,1727508709361,-203.98956473,0.0003863,120]
[339374666,1727508709371,-637.01733539,0.0003863,120]
[339374667,1727508709380,-1793.53,0.0003863,90]
[339374668,1727508709391,-362.0,0.0003865,39]
[339374669,1727508709400,-500.0,0.00038712,10]
[339374670,1727508709410,-153.0,0.00038877,2]
[339374671,1727508709420,-379.5135048,0.00038877,2]
[339374672,1727508709430,-2586.51072809,0.0003888,120]
[339374673,1727508709440,-209.70080393,0.000389,120]
[339374674,1727508709450,-153.09472021,0.00038904,28]
[339374675,1727508709459,-557.78350514,0.00038904,120]
[339374676,1727508709468,-500.0,0.00038904,120]
[339374677,1727508709478,-500.0,0.00038904,30]
[339374678,1727508709488,-500.0,0.00038904,120]
[339374679,1727508709498,-370.11799676,0.00038904,120]
[339374680,1727508709508,-324.11665606,0.00038904,120]
[339374681,1727508709517,-500.0,0.00038904,120]
[339374682,1727508709527,-745.54,0.00038904,120]
[339374683,1727508709537,-500.0,0.00038904,120]
[339374684,1727508709549,-500.0,0.00038904,120]
[339374685,1727508709560,-424.0363256,0.00038904,2]
[339374686,1727508709569,-500.0,0.00038904,120]
[339374687,1727508709579,-538.45,0.00038904,120]
[339374688,1727508709598,-500.0,0.00038904,120]
[339374689,1727508709615,-477.99092477,0.00038904,120]
[339374690,1727508709631,-500.0,0.00038904,120]
[339374691,1727508709647,-500.0,0.00038904,120]
[339374692,1727508709665,-500.0,0.00038904,30]
[339374693,1727508709681,-519.19326019,0.00038904,120]
[339374694,1727508709699,-500.0,0.00038904,120]
[339374695,1727508709714,-1022.64,0.00038904,120]
[339374696,1727508709728,-1092.5,0.00038904,120]
[339374697,1727508709744,-500.0,0.00038904,120]
[339374698,1727508709757,-7083.29,0.00038904,120]
[339374699,1727508709771,-1583.64,0.00038904,120]
[339374700,1727508709784,-4617.35,0.00038904,120]
[339374701,1727508709801,-225.84680366,0.00038904,120]
[339374702,1727508709816,-2658.87,0.00038904,120]
[339374703,1727508709832,-1301.8,0.00038904,120]
[339374704,1727508709845,-856.09,0.00038904,120]
[339374705,1727508709855,-1037.99,0.00038904,120]
[339374706,1727508709871,-500.0,0.00038904,30]
[339374707,1727508709885,-500.0,0.00038904,18]
[339374708,1727508709899,-500.0,0.00038904,120]
[339374709,1727508709912,-500.0,0.00038904,120]
[339374710,1727508709925,-500.0,0.00038904,21]
[339374711,1727508709937,-500.0,0.00038904,120]
[339374712,1727508709950,-833.36,0.00038904,120]
[339374713,1727508709962,-1793.53,0.00038904,90]
[339374714,1727508709975,-961.11090759,0.00038921,5]
[339374715,1727508709988,-250.0,0.00038921,5]
[339374716,1727508710000,-250.0,0.00038921,5]
[339374717,1727508710014,-502.45258731,0.00038921,5]
[339374718,1727508710027,-1000.0,0.00038921,5]
[339374719,1727508710039,-403.25279927,0.00038921,5]
[339374720,1727508710052,-151.0,0.00038953,15]
[339374721,1727508710066,-23998.38917281,0.00039,120]
[339374722,1727508710079,-153.0,0.00039123,2]
[339374723,1727508710091,-153.0,0.00039123,2]
[339374724,1727508710104,-153.0,0.00039123,2]
[339374725,1727508710117,-231.3061844,0.00039178,120]
[339374726,1727508710130,-500.0,0.00039178,30]
[339374727,1727508710143,-500.0,0.00039178,120]
[339374728,1727508710157,-523.31135926,0.00039178,120]
[339374729,1727508710170,-745.54,0.00039178,120]
[339374730,1727508710184,-500.0,0.00039178,120]
[339374731,1727508710197,-500.0,0.00039178,120]
[339374732,1727508710211,-500.0,0.00039178,120]
[339374733,1727508710226,-538.45,0.00039178,120]
[339374734,1727508710239,-500.0,0.00039178,120]
[339374735,1727508710252,-500.0,0.00039178,120]
[339374736,1727508710265,-500.0,0.00039178,120]
[339374737,1727508710278,-500.0,0.00039178,30]
[339374738,1727508710292,-500.0,0.00039178,120]
[339374739,1727508710306,-1022.64,0.00039178,120]
[339374740,1727508710320,-1092.5,0.00039178,120]
[339374741,1727508710332,-500.0,0.00039178,120]
[339374742,1727508710344,-7083.29,0.00039178,120]
[339374743,1727508710357,-1583.64,0.00039178,120]
[339374744,1727508710370,-4617.35,0.00039178,120]
[339374745,1727508710382,-2658.87,0.00039178,120]
[339374746,1727508710395,-1301.8,0.00039178,120]
[339374747,1727508710407,-856.09,0.00039178,120]
[339374748,1727508710421,-1037.99,0.00039178,120]
[339374749,1727508710434,-170.17493412,0.00039178,30]
[339374750,1727508710446,-500.0,0.00039178,18]
[339374751,1727508710457,-505.82812094,0.00039178,120]
[339374752,1727508710470,-500.0,0.00039178,120]
[339374753,1727508710483,-500.0,0.00039178,21]
[339374754,1727508710496,-500.0,0.00039178,120]
[339374755,1727508710509,-833.36,0.00039178,120]
[339374756,1727508710522,-1793.53,0.00039178,90]
[339374757,1727508710534,-2399.88,0.000392,14]
[339374758,1727508710546,-1192.55,0.000392,14]
[339374759,1727508710562,-600.0,0.00039302,2]
[339374760,1727508710575,-300.00865579,0.00039452,30]
[339374761,1727508710586,-500.0,0.00039452,120]
[339374762,1727508710601,-745.54,0.00039452,120]
[339374763,1727508710612,-500.0,0.00039452,120]
[339374764,1727508710624,-500.0,0.00039452,120]
[339374765,1727508710637,-500.0,0.00039452,120]
[339374766,1727508710649,-538.45,0.00039452,120]
[339374767,1727508710661,-500.0,0.00039452,120]
[339374768,1727508710673,-509.93110375,0.00039452,120]
[339374769,1727508710684,-500.0,0.00039452,120]
[339374770,1727508710696,-327.58093451,0.00039452,30]
[339374771,1727508710708,-500.0,0.00039452,120]
[339374772,1727508710720,-999.0,0.00039452,120]
[339374773,1727508710732,-1022.64,0.00039452,120]
[339374774,1727508710744,-1092.5,0.00039452,120]
[339374775,1727508710756,-151.04351416,0.00039452,120]
[339374776,1727508710768,-7083.29,0.00039452,120]
[339374777,1727508710780,-1583.64,0.00039452,120]
[339374778,1727508710791,-4617.35,0.00039452,120]
[339374779,1727508710802,-2658.87,0.00039452,120]
[339374780,1727508710814,-1301.8,0.00039452,120]
[339374781,1727508710826,-856.09,0.00039452,120]
[339374782,1727508710837,-1037.99,0.00039452,120]
[339374783,1727508710850,-500.0,0.00039452,18]
[339374784,1727508710869,-500.0,0.00039452,120]
[339374785,1727508710880,-500.0,0.00039452,21]
[339374786,1727508710892,-370.07409489,0.00039452,120]
[339374787,1727508710903,-833.36,0.00039452,120]
[339374788,1727508710915,-1793.53,0.00039452,90]
[339374789,1727508710926,-350.0,0.00039468,5]
[339374790,1727508710937,-413.66683626,0.00039468,5]
[339374791,1727508710949,-209.2405291,0.00039534,2]
[339374792,1727508710960,-153.0,0.00039534,2]
[339374793,1727508710972,-209.2405291,0.00039534,2]
[339374794,1727508710984,-153.0,0.00039534,2]
[339374795,1727508710996,-208.7814682,0.00039534,2]
[339374796,1727508711007,-153.0,0.00039534,2]
[339374797,1727508711020,-1500.0,0.00039631,5]
[339374798,1727508711031,-1877.99,0.0003968,60]
[339374799,1727508711043,-600.0,0.00039712,2]
[339374800,1727508711055,-500.0,0.00039726,120]
[339374801,1727508711067,-745.54,0.00039726,120]
[339374802,1727508711079,-500.0,0.00039726,120]
[339374803,1727508711090,-500.0,0.00039726,120]
[339374804,1727508711102,-551.89934234,0.00039726,120]
[339374805,1727508711113,-538.45,0.00039726,120]
[339374806,1727508711124,-500.0,0.00039726,120]
[339374807,1727508711136,-500.0,0.00039726,120]
[339374808,1727508711148,-500.0,0.00039726,120]
[339374809,1727508711160,-1022.64,0.00039726,120]
[339374810,1727508711171,-1092.5,0.00039726,120]
[339374811,1727508711183,-7083.29,0.00039726,120]
[339374812,1727508711194,-1583.64,0.00039726,120]
[339374813,1727508711206,-4617.35,0.00039726,120]
[339374814,1727508711217,-2658.87,0.00039726,120]
[339374815,1727508711229,-1301.8,0.00039726,120]
[339374816,1727508711240,-856.09,0.00039726,120]
[339374817,1727508711251,-1037.99,0.00039726,120]
[339374818,1727508711264,-500.0,0.00039726,18]
[339374819,1727508711275,-500.0,0.00039726,120]
[339374820,1727508711287,-500.0,0.00039726,21]
[339374821,1727508711299,-833.36,0.00039726,120]
[339374822,1727508711310,-1793.53,0.00039726,90]
[339374823,1727508711322,-500.0,0.00039773,5]
[339374824,1727508711333,-200000.0,0.000398,30]
[339374825,1727508711345,-9506.82568509,0.00039979,120]
[339374826,1727508711359,-4248.56719937,0.0004,120]
[339374827,1727508711371,-912.01913124,0.0004,60]
[339374828,1727508711382,-322.41125,0.0004,120]
[339374829,1727508711394,-1000.0,0.0004,30]
[339374830,1727508711405,-18218.63,0.0004,14]
[339374831,1727508711417,-1500.0,0.0004,2]
[339374832,1727508711428,-1500.0,0.0004,2]
[339374833,1727508711440,-20000.0,0.0004,16]
[339374834,1727508711451,-724.14054688,0.0004,120]
[339374835,1727508711463,-41269.17075556,0.0004,30]
[339374836,1727508711474,-1000.0,0.0004,120]
[339374837,1727508711486,-400.636941,0.0004,120]
[339374838,1727508711497,-648.49071174,0.0004,120]
[339374839,1727508711509,-745.54,0.0004,120]
[339374840,1727508711521,-500.0,0.0004,120]
[339374841,1727508711532,-500.0,0.0004,120]
[339374842,1727508711787,-538.45,0.0004,120]
[339374843,1727508711797,-500.0,0.0004,120]
[339374844,1727508711807,-500.0,0.0004,120]
[339374845,1727508711818,-500.0,0.0004,120]
[339374846,1727508711829,-1022.64,0.0004,120]
[339374847,1727508711838,-1092.5,0.0004,120]
[339374848,1727508711848,-7083.29,0.0004,120]
[339374849,1727508711857,-1583.64,0.0004,120]
[339374850,1727508711866,-4617.35,0.0004,120]
[339374851,1727508711876,-2658.87,0.0004,120]
[339374852,1727508711886,-1301.8,0.0004,120]
[339374853,1727508711895,-856.09,0.0004,120]
[339374854,1727508711905,-1037.99,0.0004,120]
[339374855,1727508711915,-500.0,0.0004,18]
[339374856,1727508711924,-510.17424097,0.0004,120]
[339374857,1727508711935,-500.0,0.0004,21]
[339374858,1727508711945,-833.36,0.0004,120]
[339374859,1727508711954,-1793.53,0.0004,90]
[339374860,1727508711963,-450.0,0.00040016,5]
[339374861,1727508711973,-150.0,0.00040105,2]
[339374862,1727508711982,-525.0,0.00040105,2]
[339374863,1727508711991,-1217.0,0.00040105,2]
[339374864,1727508712001,-603.74657281,0.00040121,2]
[339374865,1727508712011,-745.54,0.00040273,120]
[339374866,1727508712020,-500.0,0.00040273,120]
[339374867,1727508712030,-500.0,0.00040273,120]
[339374868,1727508712039,-538.45,0.00040273,120]
[339374869,1727508712049,-500.0,0.00040273,120]
[339374870,1727508712059,-500.0,0.00040273,120]
[339374871,1727508712068,-500.0,0.00040273,120]
[339374872,1727508712078,-1022.64,0.00040273,120]
[339374873,1727508712088,-1092.5,0.00040273,120]
[339374874,1727508712099,-7083.29,0.00040273,120]
[339374875,1727508712108,-1583.64,0.00040273,120]
[339374876,1727508712118,-4617.35,0.00040273,120]
[339374877,1727508712127,-2658.87,0.00040273,120]
[339374878,1727508712136,-1301.8,0.00040273,120]
[339374879,1727508712146,-856.09,0.00040273,120]
[339374880,1727508712156,-1037.99,0.00040273,120]
[339374881,1727508712165,-500.0,0.00040273,18]
[339374882,1727508712174,-500.0,0.00040273,21]
[339374883,1727508712184,-833.36,0.00040273,120]
[339374884,1727508712194,-1793.53,0.00040273,90]
[339374885,1727508712203,-359.676605,0.00040303,2]
[339374886,1727508712213,-1000.0,0.00040321,5]
[339374887,1727508712222,-500.0,0.00040356,10]
[339374888,1727508712231,-1532.79660898,0.0004042,5]
[339374889,1727508712240,-151.0,0.00040427,15]
[339374890,1727508712249,-150.0,0.0004044,2]
[339374891,1727508712259,-150.0,0.0004044,2]
[339374892,1727508712269,-745.54,0.00040547,120]
[339374893,1727508712278,-500.0,0.00040547,120]
[339374894,1727508712288,-500.0,0.00040547,120]
[339374895,1727508712298,-538.45,0.00040547,120]
[339374896,1727508712308,-500.0,0.00040547,120]
[339374897,1727508712320,-500.0,0.00040547,120]
[339374898,1727508712330,-500.0,0.00040547,120]
[339374899,1727508712341,-999.0,0.00040547,120]
[339374900,1727508712352,-1022.64,0.00040547,120]
[339374901,1727508712363,-1092.5,0.00040547,120]
[339374902,1727508712375,-7083.29,0.00040547,120]
[339374903,1727508712385,-1583.64,0.00040547,120]
[339374904,1727508712397,-4617.35,0.00040547,120]
[339374905,1727508712406,-2658.87,0.00040547,120]
[339374906,1727508712416,-1301.8,0.00040547,120]
[339374907,1727508712427,-856.09,0.00040547,120]
[339374908,1727508712439,-1037.99,0.00040547,120]
[339374909,1727508712450,-500.0,0.00040547,18]
[339374910,1727508712460,-500.0,0.00040547,21]
[339374911,1727508712471,-833.36,0.00040547,120]
[339374912,1727508712482,-1793.53,0.00040547,90]
[339374913,1727508712491,-479.59031727,0.00040564,5]
[339374914,1727508712501,-156.8,0.000407,31]
[339374915,1727508712511,-156.8,0.000407,31]
[339374916,1727508712522,-156.8,0.000407,31]
[339374917,1727508712533,-156.8,0.000407,31]
[339374918,1727508712544,-156.8,0.000407,31]
[339374919,1727508712554,-156.8,0.000407,31]
[339374920,1727508712568,-745.54,0.00040821,120]
[339374921,1727508712579,-500.0,0.00040821,120]
[339374922,1727508712589,-500.0,0.00040821,120]
[339374923,1727508712602,-538.45,0.00040821,120]
[339374924,1727508712613,-500.0,0.00040821,120]
[339374925,1727508712624,-500.0,0.00040821,120]
[339374926,1727508712637,-500.0,0.00040821,120]
[339374927,1727508712648,-1022.64,0.00040821,120]
[339374928,1727508712659,-1092.5,0.00040821,120]
[339374929,1727508712668,-7083.29,0.00040821,120]
[339374930,1727508712678,-1583.64,0.00040821,120]
[339374931,1727508712688,-4617.35,0.00040821,120]
[339374932,1727508712700,-2658.87,0.00040821,120]
[339374933,1727508712712,-1301.8,0.00040821,120]
[339374934,1727508712722,-856.09,0.00040821,120]
[339374935,1727508712732,-1037.99,0.00040821,120]
[339374936,1727508712743,-500.0,0.00040821,18]
[339374937,1727508712752,-500.0,0.00040821,21]
[339374938,1727508712762,-833.36,0.00040821,120]
[339374939,1727508712771,-1793.53,0.00040821,90]
[339374940,1727508712781,-305197.92551557,0.000409,30]
[339374941,1727508712791,-400.0,0.00040952,2]
[339374942,1727508712800,-202.67197388,0.00041,60]
[339374943,1727508712810,-800.0,0.00041,30]
[339374944,1727508712821,-3068.35763978,0.00041,30]
[339374945,1727508712830,-1000.0,0.00041,120]
[339374946,1727508712840,-5027.53892859,0.00041,30]
[339374947,1727508712851,-1500.0,0.00041031,5]
[339374948,1727508712860,-152.0,0.00041041,31]
[339374949,1727508712870,-1000.0,0.00041095,30]
[339374950,1727508712880,-745.54,0.00041095,120]
[339374951,1727508712890,-500.0,0.00041095,120]
[339374952,1727508712900,-523.32859395,0.00041095,120]
[339374953,1727508712911,-538.45,0.00041095,120]
[339374954,1727508712921,-500.0,0.00041095,120]
[339374955,1727508712930,-500.0,0.00041095,120]
[339374956,1727508712942,-500.0,0.00041095,120]
[339374957,1727508712953,-1022.64,0.00041095,120]
[339374958,1727508712964,-1092.5,0.00041095,120]
[339374959,1727508712974,-7083.29,0.00041095,120]
[339374960,1727508712985,-1583.64,0.00041095,120]
[339374961,1727508712994,-4617.35,0.00041095,120]
[339374962,1727508713005,-2658.87,0.00041095,120]
[339374963,1727508713015,-1301.8,0.00041095,120]
[339374964,1727508713025,-856.09,0.00041095,120]
[339374965,1727508713036,-1037.99,0.00041095,120]
[339374966,1727508713046,-500.0,0.00041095,18]
[339374967,1727508713056,-500.0,0.00041095,21]
[339374968,1727508713066,-833.36,0.00041095,120]
[339374969,1727508713075,-1316.0,0.000411,14]
[339374970,1727508713084,-152.0,0.00041361,31]
[339374971,1727508713094,-745.54,0.00041369,120]
[339374972,1727508713104,-500.0,0.00041369,120]
[339374973,1727508713114,-538.45,0.00041369,120]
[339374974,1727508713123,-481.57656036,0.00041369,120]
[339374975,1727508713133,-500.0,0.00041369,120]
[339374976,1727508713144,-500.0,0.00041369,120]
[339374977,1727508713154,-1022.64,0.00041369,120]
[339374978,1727508713164,-1092.5,0.00041369,120]
[339374979,1727508713175,-7083.29,0.00041369,120]
[339374980,1727508713185,-1583.64,0.00041369,120]
[339374981,1727508713195,-4617.35,0.00041369,120]
[339374982,1727508713206,-2658.87,0.00041369,120]
[339374983,1727508713218,-1301.8,0.00041369,120]
[339374984,1727508713227,-856.09,0.00041369,120]
[339374985,1727508713238,-1037.99,0.00041369,120]
[339374986,1727508713249,-500.0,0.00041369,18]
[339374987,1727508713260,-500.0,0.00041369,21]
[339374988,1727508713270,-833.36,0.00041369,120]
[339374989,1727508713280,-500.0,0.000415,120]
[339374990,1727508713290,-38697.131205,0.000415,7]
[339374991,1727508713299,-2399.88,0.000415,14]
[339374992,1727508713309,-1192.55,0.000415,14]
[339374993,1727508713319,-173.13252674,0.0004158,120]
[339374994,1727508713329,-745.54,0.00041643,120]
[339374995,1727508713339,-500.0,0.00041643,120]
[339374996,1727508713348,-538.45,0.00041643,120]
[339374997,1727508713358,-500.0,0.00041643,120]
[339374998,1727508713368,-500.0,0.00041643,120]
[339374999,1727508713377,-999.0,0.00041643,120]
[339375000,1727508713388,-1022.64,0.00041643,120]
[339375001,1727508713398,-1092.5,0.00041643,120]
[339375002,1727508713408,-7083.29,0.00041643,120]
[339375003,1727508713421,-1583.64,0.00041643,120]
[339375004,1727508713432,-4617.35,0.00041643,120]
[339375005,1727508713441,-2658.87,0.00041643,120]
[339375006,1727508713451,-1301.8,0.00041643,120]
[339375007,1727508713461,-856.09,0.00041643,120]
[339375008,1727508713471,-1037.99,0.00041643,120]
[339375009,1727508713481,-500.0,0.00041643,18]
[339375010,1727508713491,-272.52645785,0.00041643,21]
[339375011,1727508713502,-833.36,0.00041643,120]
[339375012,1727508713511,-152.0,0.0004168,31]
[339375013,1727508713521,-145828.29610098,0.000418,60]
[339375014,1727508713531,-2000.0,0.0004182,10]
[339375015,1727508713541,-681535.73022789,0.0004188,4]
[339375016,1727508713789,-1002.126849,0.00034,15]
[339375017,1727508713799,-1000.0,0.000345,15]
[339375018,1727508713809,-1793.53,0.00041095,90]
[339375019,1727508713819,-1793.53,0.00041369,90]
[339375020,1727508713828,-1793.53,0.00041643,90]
[339375021,1727508713838,-276639.95752544,0.0004188,4]
[339375022,1727508713848,-191.96,0.000419,30]
[339375023,1727508713859,-151.0,0.000419,31]
[339375024,1727508713870,-745.54,0.00041917,120]
[339375025,1727508713879,-500.0,0.00041917,120]
[339375026,1727508713889,-538.45,0.00041917,120]
[339375027,1727508713899,-500.0,0.00041917,120]
[339375028,1727508713910,-500.0,0.00041917,120]